fUSD/lending_fUSD_20240426
["ID","MTS","AMOUNT","RATE_DAILY","PERIOD"]
[323662358,1714151444137,-3377.65595927,0.00011286,2]
[323662359,1714151444147,-538.13,0.00011287,2]
[323662360,1714151444156,-500.0,0.00011287,2]
[323662361,1714151444165,-500.0,0.00011287,2]
[323662362,1714151444175,-500.0,0.00011287,2]
[323662363,1714151444184,-500.0,0.00011287,2]
[323662364,1714151444194,-337.3229904,0.00011304,2]
[323662365,1714151444204,-500.0,0.00011304,2]
[323662366,1714151444215,-1077.44,0.00011304,2]
[323662367,1714151444225,-500.0,0.00011304,2]
[323662368,1714151444234,-502.08,0.00011304,2]
[323662369,1714151444243,-500.0,0.00011304,2]
[323662370,1714151444252,-500.0,0.00011304,2]
[323662371,1714151444262,-500.0,0.00011304,2]
[323662372,1714151444272,-500.0,0.00011304,2]
[323662373,1714151444281,-500.0,0.00011304,2]
[323662374,1714151444298,-598.82811502,0.00011304,2]
[323662375,1714151444311,-620.56,0.00011304,2]
[323662376,1714151444320,-500.0,0.00011304,2]
[323662377,1714151444329,-500.0,0.00011304,2]
[323662378,1714151444339,-849.76,0.00011304,2]
[323662379,1714151444349,-500.0,0.00011304,2]
[323662380,1714151444358,-577.47,0.00011304,2]
[323662381,1714151444368,-500.0,0.00011304,2]
[323662382,1714151444378,-1341.04,0.00011304,2]
[323662383,1714151444387,-597.21385029,0.00011439,2]
[323662384,1714151444396,-500.0,0.00011439,2]
[323662385,1714151444405,-571.88,0.00011439,2]
[323662386,1714151444415,-452.41908502,0.00011439,2]
[323662387,1714151444450,-479.88244419,0.00011287,2]
[323662388,1714151444499,-69.11755581,0.00011287,2]
[323662389,1714151444510,-47.58091498,0.00011439,2]
[323662390,1714151444519,-500.0,0.00011439,2]
[323662391,1714151444529,-500.0,0.00011439,2]
[323662392,1714151444539,-500.0,0.00011439,2]
[323662393,1714151444548,-500.0,0.00011439,2]
[323662394,1714151444558,-500.0,0.00011439,2]
[323662395,1714151444567,-500.0,0.00011439,2]
[323662396,1714151444577,-500.0,0.00011439,2]
[323662397,1714151444586,-599.32695354,0.00011439,2]
[323662398,1714151444596,-500.0,0.00011439,2]
[323662399,1714151444606,-500.0,0.00011439,2]
[323662400,1714151444615,-503.19420175,0.00011439,2]
[323662401,1714151444625,-500.0,0.00011439,2]
[323662402,1714151444634,-500.0,0.00011439,2]
[323662403,1714151444643,-500.0,0.00011439,2]
[323662404,1714151444653,-500.0,0.00011439,2]
[323662405,1714151444663,-500.0,0.00011439,2]
[323662406,1714151444673,-500.0,0.00011439,2]
[323662407,1714151444683,-500.0,0.00011439,2]
[323662408,1714151444694,-510.02553427,0.00011439,2]
[323662409,1714151444703,-500.0,0.00011439,2]
[323662410,1714151444713,-500.0,0.00011439,2]
[323662411,1714151444723,-311.82281707,0.00011439,2]
[323662412,1714151444732,-500.0,0.00011439,2]
[323662413,1714151444742,-500.0,0.00011439,2]
[323662414,1714151444752,-500.0,0.00011439,2]
[323662415,1714151444762,-500.0,0.00011439,2]
[323662416,1714151444771,-500.0,0.00011439,2]
[323662417,1714151444782,-500.0,0.00011439,2]
[323662418,1714151444791,-500.0,0.00011439,2]
[323662419,1714151444801,-500.0,0.00011439,2]
[323662420,1714151444811,-500.0,0.00011439,2]
[323662421,1714151444821,-500.0,0.00011439,2]
[323662422,1714151444830,-150.84909997,0.00011439,2]
[323662423,1714151444840,-500.0,0.00011439,2]
[323662424,1714151444849,-500.0,0.00011439,2]
[323662425,1714151444859,-500.0,0.00011439,2]
[323662426,1714151444868,-500.0,0.00011439,2]
[323662427,1714151444877,-244.04,0.00011439,2]
[323662428,1714151444886,-434.62303381,0.00011439,2]
[323662429,1714151444895,-470.92,0.00011439,2]
[323662430,1714151444904,-500.0,0.00011439,2]
[323662431,1714151444913,-500.0,0.00011439,2]
[323662432,1714151444923,-501.76,0.00011439,2]
[323662433,1714151444932,-500.0,0.00011439,2]
[323662434,1714151444943,-500.0,0.00011439,2]
[323662435,1714151444951,-500.0,0.00011439,2]
[323662436,1714151444960,-500.0,0.00011439,2]
[323662437,1714151444971,-500.0,0.00011439,2]
[323662438,1714151444980,-500.0,0.00011439,2]
[323662439,1714151444989,-237.97351983,0.00011439,2]
[323662440,1714151444998,-500.0,0.00011439,2]
[323662441,1714151445010,-500.0,0.00011439,2]
[323662442,1714151445022,-500.0,0.00011439,2]
[323662443,1714151445031,-545.16,0.00011439,2]
[323662444,1714151445040,-500.0,0.00011439,2]
[323662445,1714151445049,-500.0,0.00011439,2]
[323662447,1714151445058,-500.0,0.00011439,2]
[323662449,1714151445068,-500.0,0.00011439,2]
[323662451,1714151445077,-500.0,0.00011439,2]
[323662453,1714151445088,-500.0,0.00011439,2]
[323662455,1714151445097,-507.96348965,0.00011439,2]
[323662457,1714151445106,-500.0,0.00011439,2]
[323662459,1714151445115,-500.0,0.00011439,2]
[323662461,1714151445124,-507.09,0.00011439,2]
[323662463,1714151445133,-500.0,0.00011439,2]
[323662465,1714151445143,-500.0,0.00011439,2]
[323662467,1714151445152,-500.0,0.00011439,2]
[323662469,1714151445161,-500.0,0.00011439,2]
[323662471,1714151445170,-500.0,0.00011439,2]
[323662473,1714151445180,-500.0,0.00011439,2]
[323662475,1714151445188,-500.0,0.00011439,2]
[323662477,1714151445197,-500.0,0.00011439,2]
[323662479,1714151445206,-500.0,0.00011439,2]
[323662481,1714151445216,-500.0,0.00011439,2]
[323662483,1714151445225,-502.33383086,0.00011439,2]
[323662485,1714151445235,-500.0,0.00011439,2]
[323662487,1714151445244,-500.0,0.00011439,2]
[323662489,1714151445253,-500.0,0.00011439,2]
[323662491,1714151445262,-500.0,0.00011439,2]
[323662493,1714151445271,-500.0,0.00011439,2]
[323662495,1714151445281,-155.63,0.00011439,2]
[323662531,1714151445600,-500.0,0.00011439,2]
[323662533,1714151445611,-500.0,0.00011439,2]
[323662535,1714151445620,-500.0,0.00011439,2]
[323662537,1714151445630,-500.0,0.00011439,2]
[323662539,1714151445639,-500.0,0.00011439,2]
[323662541,1714151445648,-168.68,0.00011439,2]
[323662543,1714151445658,-502.2,0.00011439,2]
[323662545,1714151445667,-270.74657434,0.00011439,2]
[323662547,1714151445676,-209.86735848,0.00011439,2]
[323662549,1714151445685,-500.0,0.00011439,2]
[323662551,1714151445694,-502.13808404,0.00011439,2]
[323662553,1714151445703,-500.0,0.00011439,2]
[323662555,1714151445713,-500.0,0.00011439,2]
[323662557,1714151445724,-410.63,0.00011439,2]
[323662559,1714151445733,-500.0,0.00011439,2]
[323662562,1714151445773,-500.0,0.00011439,2]
[323662564,1714151445783,-500.0,0.00011439,2]
[323662566,1714151445794,-500.0,0.00011439,2]
[323662568,1714151445804,-192.2,0.00011439,2]
[323662570,1714151445813,-500.0,0.00011439,2]
[323662572,1714151445824,-500.0,0.00011439,2]
[323662574,1714151445834,-500.0,0.00011439,2]
[323662576,1714151445843,-177.0721744,0.00011439,2]
[323662578,1714151445853,-500.0,0.00011439,2]
[323662579,1714151445863,-500.0,0.00011439,2]
[323662581,1714151445872,-500.0,0.00011439,2]
[323662583,1714151445883,-500.0,0.00011439,2]
[323662585,1714151445893,-500.0,0.00011439,2]
[323662587,1714151445902,-500.0,0.00011439,2]
[323662589,1714151445911,-500.0,0.00011439,2]
[323662591,1714151445920,-188.06,0.00011439,2]
[323662593,1714151445929,-500.0,0.00011439,2]
[323662595,1714151445938,-500.0,0.00011439,2]
[323662597,1714151445948,-500.0,0.00011439,2]
[323662600,1714151445959,-500.0,0.00011439,2]
[323662602,1714151445968,-500.0,0.00011439,2]
[323662604,1714151445977,-500.0,0.00011439,2]
[323662606,1714151445986,-599.58,0.00011439,2]
[323662607,1714151445995,-500.0,0.00011439,2]
[323662609,1714151446005,-567.07380414,0.00011439,2]
[323662612,1714151446019,-500.0,0.00011439,2]
[323662614,1714151446028,-500.0,0.00011439,2]
[323662616,1714151446037,-2584.14282898,0.0001145,2]
[323662618,1714151446047,-1230.59579329,0.00011535,2]
[323662620,1714151446056,-155.0,0.00011535,2]
[323662622,1714151446069,-500.0,0.00011535,2]
[323662624,1714151446079,-547.14444936,0.00011535,2]
[323662626,1714151446092,-500.0,0.00011535,2]
[323662628,1714151446103,-500.0,0.00011535,2]
[323662630,1714151446112,-550.62,0.00011535,2]
[323662632,1714151446121,-500.0,0.00011535,2]
[323662634,1714151446130,-500.0,0.00011535,2]
[323662636,1714151446140,-691.8,0.00011535,2]
[323662638,1714151446149,-500.0,0.00011535,2]
[323662640,1714151446158,-1110.69,0.00011535,2]
[323662642,1714151446168,-500.0,0.00011535,2]
[323662644,1714151446177,-1522.81,0.00011535,2]
[323662646,1714151446186,-1387.41,0.00011535,2]
[323662648,1714151446195,-500.0,0.00011535,2]
[323662650,1714151446204,-1527.96,0.00011535,2]
[323662652,1714151446213,-500.0,0.00011535,2]
[323662654,1714151446223,-500.0,0.00011535,2]
[323662656,1714151446232,-1133.09,0.00011535,2]
[323662658,1714151446242,-901.94,0.00011535,2]
[323662660,1714151446251,-587.0,0.00011535,2]
[323662662,1714151446260,-500.0,0.00011536,2]
[323662664,1714151446270,-500.0,0.00011537,2]
[323662666,1714151446279,-1236.63,0.0001156,2]
[323662668,1714151446289,-988.87,0.0001156,2]
[323662670,1714151446298,-500.0,0.0001156,2]
[323662672,1714151446308,-1235.15,0.0001156,2]
[323662674,1714151446317,-3047.9,0.0001156,2]
[323662676,1714151446327,-1843.64,0.0001156,2]
[323662678,1714151446336,-707.95,0.0001156,2]
[323662680,1714151446345,-2127.85,0.0001156,2]
[323662682,1714151446354,-1311.62,0.0001156,2]
[323662684,1714151446363,-1506.79,0.0001156,2]
[323662686,1714151446372,-486.17331174,0.0001156,2]
[323662688,1714151446382,-2085.01,0.0001156,2]
[323662691,1714151446392,-500.0,0.0001156,2]
[323662693,1714151446401,-932.1,0.0001156,2]
[323662694,1714151446411,-4003.61,0.0001156,2]
[323662696,1714151446420,-4772.25,0.0001156,2]
[323662697,1714151446429,-560.70058684,0.0001156,2]
[323662698,1714151446451,-1369.37941316,0.0001156,2]
[323662699,1714151446460,-2510.03430873,0.0001156,2]
[323662700,1714151446474,-515.95569127,0.0001156,2]
[323662701,1714151446483,-31.6376724,0.0001156,2]
[323662702,1714151446501,-2126.1623276,0.0001156,2]
[323662704,1714151446511,-811.86,0.0001156,2]
[323662706,1714151446520,-1184.9,0.0001156,2]
[323662708,1714151446529,-981.6,0.0001156,2]
[323662710,1714151446539,-2388.61,0.0001156,2]
[323662713,1714151446552,-500.0,0.0001156,2]
[323662715,1714151446561,-1727.42,0.0001156,2]
[323662717,1714151446574,-964.21,0.0001156,2]
[323662719,1714151446584,-393.58853364,0.0001156,2]
[323662778,1714151447178,-393.85,0.00011286,2]
[323662780,1714151447190,-106.15,0.00011286,2]
[323662782,1714151447201,-2513.9,0.00011286,2]
[323662784,1714151447211,-500.0,0.00011287,2]
[323662786,1714151447223,-500.0,0.00011287,2]
[323662788,1714151447233,-500.0,0.00011287,2]
[323662790,1714151447242,-500.0,0.00011287,2]
[323662792,1714151447252,-260.34433436,0.0001156,2]
[323662795,1714151447265,-2004.257132,0.0001156,2]
[323662796,1714151447275,-1079.37,0.0001156,2]
[323662798,1714151447286,-500.0,0.0001156,2]
[323662801,1714151447297,-388.372868,0.0001156,2]
[323662803,1714151447309,-111.627132,0.0001156,2]
[323662805,1714151447319,-500.0,0.0001156,2]
[323662807,1714151447329,-500.0,0.0001156,2]
[323662809,1714151447340,-2743.08,0.0001156,2]
[323662811,1714151447350,-500.0,0.0001156,2]
[323662812,1714151447361,-2034.545868,0.0001156,2]
[323662815,1714151447373,-258.374132,0.0001156,2]
[323662817,1714151447382,-5041.92,0.0001156,2]
[323662819,1714151447393,-500.0,0.0001156,2]
[323662821,1714151447403,-3565.19,0.0001156,2]
[323662823,1714151447412,-500.0,0.0001156,2]
[323662825,1714151447421,-500.0,0.0001156,2]
[323662827,1714151447431,-500.0,0.0001156,2]
[323662829,1714151447440,-500.0,0.0001156,2]
[323662831,1714151447449,-2513.9,0.0001156,2]
[323662833,1714151447459,-500.0,0.00011561,2]
[323662835,1714151447469,-383.68,0.00011561,2]
[323662837,1714151447478,-500.0,0.00011561,2]
[323662839,1714151447488,-500.0,0.00011561,2]
[323662841,1714151447497,-1237.8,0.00011561,2]
[323662843,1714151447506,-500.0,0.00011561,2]
[323662845,1714151447516,-500.0,0.00011561,2]
[323662847,1714151447525,-500.0,0.00011561,2]
[323662849,1714151447535,-336.9,0.00011561,2]
[323662851,1714151447545,-517.17,0.00011561,2]
[323662853,1714151447554,-500.0,0.00011561,2]
[323662855,1714151447563,-500.0,0.00011561,2]
[323662857,1714151447574,-208.71244287,0.00011561,2]
[323662859,1714151447584,-500.0,0.00011561,2]
[323662861,1714151447594,-1595.65,0.00011561,2]
[323662863,1714151447604,-406.82914571,0.00011561,2]
[323662865,1714151447613,-551.26,0.00011561,2]
[323662867,1714151447623,-500.0,0.00011561,2]
[323662869,1714151447633,-500.0,0.00011561,2]
[323662871,1714151447643,-230.84859612,0.00011561,2]
[323662874,1714151447664,-414.45482597,0.00011285,2]
[323662876,1714151447674,-422.15140388,0.00011561,2]
[323662879,1714151447683,-649.9,0.00011561,2]
[323662881,1714151447693,-321.85089667,0.00011561,2]
[323662883,1714151447706,-178.14910333,0.00011561,2]
[323662885,1714151447715,-500.0,0.00011561,2]
[323662887,1714151447727,-337.44,0.00011561,2]
[323662889,1714151447736,-500.0,0.00011561,2]
[323662891,1714151447746,-993.13,0.00011561,2]
[323662893,1714151447755,-500.0,0.00011561,2]
[323662895,1714151447765,-635.97,0.00011561,2]
[323662897,1714151447775,-185.57853592,0.00011561,2]
[323662899,1714151447786,-500.0,0.00011561,2]
[323662901,1714151447797,-500.0,0.00011561,2]
[323662903,1714151447809,-190.54785455,0.00011561,2]
[323662905,1714151447819,-1650.81,0.00011561,2]
[323662907,1714151447831,-1675.32,0.00011561,2]
[323662908,1714151447841,-500.0,0.00011561,2]
[323662909,1714151447851,-500.0,0.00011561,2]
[323662910,1714151447859,-500.0,0.00011561,2]
[323662911,1714151447868,-500.0,0.00011561,2]
[323662912,1714151447879,-605.08,0.00011561,2]
[323662913,1714151447888,-1825.49,0.00011561,2]
[323662914,1714151447899,-500.0,0.00011561,2]
[323662916,1714151447909,-500.0,0.00011561,2]
[323662918,1714151447919,-500.0,0.00011561,2]
[323662920,1714151447930,-500.0,0.00011561,2]
[323662922,1714151447940,-500.0,0.00011561,2]
[323662924,1714151447950,-500.0,0.00011561,2]
[323662926,1714151447960,-500.0,0.00011561,2]
[323662928,1714151447970,-500.0,0.00011561,2]
[323662930,1714151447979,-500.0,0.00011561,2]
[323662932,1714151447989,-689.79,0.00011561,2]
[323662933,1714151447999,-386.79,0.00011561,2]
[323662935,1714151448010,-500.0,0.00011561,2]
[323662938,1714151448023,-524.55,0.00011561,2]
[323662940,1714151448034,-500.0,0.00011561,2]
[323662942,1714151448044,-500.0,0.00011561,2]
[323662943,1714151448054,-500.0,0.00011561,2]
[323662946,1714151448066,-626.78,0.00011561,2]
[323662948,1714151448076,-500.0,0.00011561,2]
[323662950,1714151448087,-500.0,0.00011561,2]
[323662951,1714151448099,-500.0,0.00011561,2]
[323662953,1714151448109,-221.49,0.00011561,2]
[323662956,1714151448122,-400.75,0.00011561,2]
[323662957,1714151448132,-727.96,0.00011561,2]
[323662960,1714151448144,-284.91,0.00011561,2]
[323662962,1714151448156,-371.84,0.00011561,2]
[323662964,1714151448168,-500.0,0.00011561,2]
[323662965,1714151448180,-500.0,0.00011561,2]
[323662967,1714151448190,-586.56,0.00011561,2]
[323662970,1714151448201,-500.0,0.00011561,2]
[323662972,1714151448215,-567.26,0.00011561,2]
[323662974,1714151448227,-658.81,0.00011561,2]
[323662976,1714151448238,-500.0,0.00011561,2]
[323662978,1714151448248,-500.0,0.00011561,2]
[323662980,1714151448258,-500.0,0.00011561,2]
[323662982,1714151448267,-500.0,0.00011561,2]
[323662984,1714151448276,-2096.55,0.00011561,2]
[323662986,1714151448286,-500.0,0.00011561,2]
[323662988,1714151448296,-660.54,0.00011561,2]
[323662990,1714151448306,-500.0,0.00011561,2]
[323662992,1714151448315,-197.38,0.00011561,2]
[323662994,1714151448324,-500.0,0.00011561,2]
[323662996,1714151448333,-1713.61,0.00011561,2]
[323662998,1714151448342,-1168.69,0.00011561,2]
[323663000,1714151448352,-500.0,0.00011561,2]
[323663002,1714151448362,-9507.7,0.00011561,2]
[323663004,1714151448373,-500.0,0.00011561,2]
[323663006,1714151448382,-662.79,0.00011561,2]
[323663008,1714151448391,-500.0,0.00011561,2]
[323663010,1714151448401,-505.32,0.00011561,2]
[323663012,1714151448410,-1136.1,0.00011561,2]
[323663014,1714151448419,-500.0,0.00011561,2]
[323663016,1714151448429,-664.71,0.00011561,2]
[323663018,1714151448438,-3668.56,0.00011561,2]
[323663020,1714151448447,-3129.77,0.00011561,2]
[323663022,1714151448456,-500.0,0.00011561,2]
[323663024,1714151448466,-1658.06,0.00011561,2]
[323663027,1714151448476,-6601.57,0.00011561,2]
[323663029,1714151448486,-500.0,0.00011561,2]
[323663031,1714151448496,-8618.17,0.00011561,2]
[323663033,1714151448505,-500.0,0.00011561,2]
[323663035,1714151448514,-1052.64,0.00011561,2]
[323663036,1714151448524,-2744.18,0.00011561,2]
[323663038,1714151448533,-1813.16,0.00011561,2]
[323663039,1714151448542,-500.0,0.00011561,2]
[323663041,1714151448552,-1562.11,0.00011561,2]
[323663043,1714151448562,-500.0,0.00011561,2]
[323663044,1714151448571,-1924.96,0.00011561,2]
[323663046,1714151448580,-1536.97,0.00011561,2]
[323663047,1714151448589,-1240.32,0.00011561,2]
[323663049,1714151448598,-3849.75,0.00011561,2]
[323663051,1714151448607,-500.0,0.00011561,2]
[323663052,1714151448616,-3065.16,0.00011561,2]
[323663054,1714151448625,-5407.27,0.00011561,2]
[323663055,1714151448634,-500.0,0.00011561,2]
[323663057,1714151448643,-500.0,0.00011561,2]
[323663059,1714151448653,-590.75,0.00011561,2]
[323663060,1714151448662,-500.0,0.00011561,2]
[323663062,1714151448671,-7048.43,0.00011561,2]
[323663063,1714151448680,-500.0,0.00011561,2]
[323663065,1714151448689,-1956.15,0.00011561,2]
[323663067,1714151448699,-4098.93,0.00011561,2]
[323663068,1714151448708,-1557.71,0.00011561,2]
[323663070,1714151448717,-1556.15,0.00011561,2]
[323663072,1714151448727,-2225.27,0.00011561,2]
[323663073,1714151448736,-802.71,0.00011561,2]
[323663075,1714151448745,-500.0,0.00011561,2]
[323663076,1714151448754,-1132.16,0.00011561,2]
[323663078,1714151448763,-500.0,0.00011561,2]
[323663080,1714151448773,-1079.18,0.00011561,2]
[323663081,1714151448782,-500.0,0.00011561,2]
[323663083,1714151448791,-3443.09,0.00011561,2]
[323663085,1714151448800,-2782.76,0.00011561,2]
[323663086,1714151448809,-500.0,0.00011561,2]
[323663088,1714151448818,-500.0,0.00011561,2]
[323663090,1714151448827,-8661.4,0.00011561,2]
[323663092,1714151448836,-500.0,0.00011561,2]
[323663093,1714151448845,-636.13,0.00011561,2]
[323663095,1714151448854,-500.0,0.00011561,2]
[323663097,1714151448863,-500.0,0.00011561,2]
[323663099,1714151448872,-5049.04,0.00011561,2]
[323663100,1714151448881,-500.0,0.00011561,2]
[323663102,1714151448891,-14670.52,0.00011561,2]
[323663104,1714151448901,-1993.01,0.00011561,2]
[323663106,1714151448910,-2395.87,0.00011561,2]
[323663107,1714151448919,-500.0,0.00011561,2]
[323663109,1714151448929,-4196.83,0.00011561,2]
[323663111,1714151448937,-500.0,0.00011561,2]
[323663112,1714151448946,-1095.0,0.00011561,2]
[323663115,1714151448963,-670.82,0.00011561,2]
[323663116,1714151448972,-1152.84,0.00011561,2]
[323663118,1714151448983,-4023.5,0.00011561,2]
[323663120,1714151448992,-4876.99,0.00011561,2]
[323663121,1714151449001,-2364.3,0.00011561,2]
[323663123,1714151449011,-500.0,0.00011561,2]
[323663125,1714151449021,-885.65,0.00011561,2]
[323663127,1714151449030,-512.17,0.00011561,2]
[323663128,1714151449039,-500.0,0.00011561,2]
[323663130,1714151449049,-500.0,0.00011561,2]
[323663132,1714151449059,-1389.65,0.00011561,2]
[323663133,1714151449067,-1798.93,0.00011561,2]
[323663135,1714151449077,-645.75,0.00011561,2]
[323663137,1714151449088,-680.25,0.00011561,2]
[323663139,1714151449097,-228.54,0.00011561,2]
[323663140,1714151449107,-345.56,0.00011561,2]
[323663142,1714151449116,-500.0,0.00011561,2]
[323663144,1714151449125,-500.0,0.00011561,2]
[323663145,1714151449134,-934.79,0.00011561,2]
[323663147,1714151449143,-500.0,0.00011561,2]
[323663149,1714151449151,-500.0,0.00011561,2]
[323663150,1714151449162,-500.0,0.00011561,2]
[323663152,1714151449171,-1820.94,0.00011561,2]
[323663154,1714151449181,-1868.12,0.00011561,2]
[323663156,1714151449190,-500.0,0.00011561,2]
[323663157,1714151449198,-500.0,0.00011561,2]
[323663159,1714151449208,-500.0,0.00011561,2]
[323663161,1714151449217,-1369.92,0.00011561,2]
[323663162,1714151449226,-875.0,0.00011561,2]
[323663164,1714151449236,-2640.05,0.00011561,2]
[323663166,1714151449245,-1910.12,0.00011561,2]
[323663168,1714151449254,-500.0,0.00011561,2]
[323663169,1714151449263,-500.0,0.00011561,2]
[323663171,1714151449272,-500.0,0.00011561,2]
[323663173,1714151449281,-500.0,0.00011561,2]
[323663174,1714151449290,-1127.58,0.00011561,2]
[323663176,1714151449299,-540.7,0.00011561,2]
[323663178,1714151449309,-500.0,0.00011561,2]
[323663180,1714151449318,-500.0,0.00011561,2]
[323663182,1714151449328,-6360.34,0.00011561,2]
[323663184,1714151449337,-500.0,0.00011561,2]
[323663185,1714151449346,-4505.41,0.00011561,2]
[323663186,1714151449355,-1576.88,0.00011561,2]
[323663187,1714151449364,-500.0,0.00011561,2]
[323663188,1714151449373,-1518.8,0.00011561,2]
[323663189,1714151449382,-500.0,0.00011561,2]
[323663190,1714151449392,-4342.29,0.00011561,2]
[323663191,1714151449401,-6439.66,0.00011561,2]
[323663192,1714151449411,-864.32,0.00011561,2]
[323663193,1714151449420,-3803.48,0.00011561,2]
[323663194,1714151449429,-500.0,0.00011561,2]
[323663195,1714151449439,-500.0,0.00011561,2]
[323663196,1714151449448,-9175.58,0.00011561,2]
[323663197,1714151449457,-361.9667987,0.00011561,2]
[323663198,1714151449465,-25838.47055287,0.00011566,2]
[323663200,1714151449475,-500.0,0.00011578,2]
[323663202,1714151449486,-500.0,0.00011578,2]
[323663204,1714151449494,-500.0,0.00011578,2]
[323663206,1714151449503,-500.0,0.00011578,2]
[323663208,1714151449512,-500.0,0.00011578,2]
[323663210,1714151449521,-658.36,0.00011578,2]
[323663212,1714151449530,-523.58,0.00011578,2]
[323663214,1714151449539,-500.0,0.00011578,2]
[323663216,1714151449548,-813.29,0.00011578,2]
[323663218,1714151449557,-500.0,0.00011578,2]
[323663220,1714151449566,-500.0,0.00011578,2]
[323663222,1714151449576,-756.94,0.00011578,2]
[323663224,1714151449584,-752.56,0.00011578,2]
[323663226,1714151449593,-500.0,0.00011578,2]
[323663228,1714151449603,-699.65,0.00011578,2]
[323663254,1714151449827,-500.0,0.00011578,2]
[323663256,1714151449837,-554.32,0.00011578,2]
[323663258,1714151449846,-1480.24,0.00011578,2]
[323663260,1714151449855,-500.0,0.00011578,2]
[323663262,1714151449865,-500.0,0.00011578,2]
[323663264,1714151449874,-500.0,0.00011578,2]
[323663266,1714151449883,-441.76846234,0.00011578,2]
[323663268,1714151449892,-500.0,0.00011578,2]
[323663270,1714151449901,-500.0,0.00011578,2]
[323663272,1714151449911,-901.02,0.00011578,2]
[323663274,1714151449921,-500.0,0.00011578,2]
[323663276,1714151449930,-777.34,0.00011578,2]
[323663278,1714151449939,-718.69,0.00011578,2]
[323663280,1714151449948,-500.0,0.00011578,2]
[323663282,1714151449958,-1647.51,0.00011578,2]
[323663284,1714151449967,-500.0,0.00011578,2]
[323663286,1714151449977,-823.53,0.00011578,2]
[323663288,1714151449986,-500.0,0.00011578,2]
[323663290,1714151449995,-1121.33,0.00011578,2]
[323663292,1714151450004,-1146.69,0.00011578,2]
[323663294,1714151450016,-500.0,0.00011578,2]
[323663296,1714151450025,-992.14,0.00011578,2]
[323663298,1714151450034,-500.0,0.00011578,2]
[323663300,1714151450044,-867.84,0.00011578,2]
[323663302,1714151450053,-500.0,0.00011578,2]
[323663304,1714151450065,-540.36,0.00011578,2]
[323663306,1714151450074,-1324.49,0.00011578,2]
[323663308,1714151450083,-1035.88,0.00011578,2]
[323663310,1714151450094,-1360.39,0.00011578,2]
[323663312,1714151450104,-500.0,0.00011578,2]
[323663314,1714151450113,-500.0,0.00011578,2]
[323663316,1714151450122,-500.0,0.00011578,2]
[323663319,1714151450132,-500.0,0.00011578,2]
[323663320,1714151450141,-500.0,0.00011578,2]
[323663322,1714151450150,-894.04,0.00011578,2]
[323663324,1714151450159,-500.0,0.00011578,2]
[323663327,1714151450168,-500.0,0.00011578,2]
[323663329,1714151450178,-500.0,0.00011578,2]
[323663331,1714151450187,-543.43,0.00011578,2]
[323663333,1714151450196,-500.0,0.00011578,2]
[323663335,1714151450205,-500.0,0.00011578,2]
[323663336,1714151450214,-500.0,0.00011578,2]